fUST/lending_fUST_20260101
["ID","MTS","AMOUNT","RATE_DAILY","PERIOD"]
[400269288,1767246639066,-500.0,0.00013273,2]
[400269289,1767246639076,-510.90139551,0.00013273,2]
[400269290,1767246639086,-497.57485249,0.00013273,2]
[400269291,1767246639095,-500.0,0.00013273,2]
[400269292,1767246639105,-500.0,0.00013273,2]
[400269293,1767246639115,-500.0,0.00013273,2]
[400269294,1767246639124,-500.0,0.00013273,2]
[400269295,1767246639134,-500.0,0.00013273,2]
[400269296,1767246639143,-150.19564112,0.00013273,2]
[400269297,1767246639152,-303.48839613,0.00013273,2]
[400269298,1767246639161,-204.97300329,0.00013273,2]
[400269299,1767246639171,-199.13796001,0.00013273,2]
[400269300,1767246639180,-1682.55469545,0.0001354,2]
[400269301,1767246639190,-500.0,0.00013698,2]
[400269302,1767246639199,-530.23109502,0.00013698,2]
[400269303,1767246639209,-634.29682706,0.00013698,2]
[400269304,1767246639219,-500.0,0.00013698,2]
[400269305,1767246639229,-500.0,0.00013698,2]
[400269306,1767246639238,-500.0,0.00013698,2]
[400269307,1767246639248,-500.0,0.00013698,2]
[400269308,1767246639257,-500.0,0.00013698,2]
[400269309,1767246639266,-500.0,0.00013698,2]
[400269310,1767246639275,-294.49990003,0.00013698,2]
[400269311,1767246639285,-582.30404194,0.00013698,2]
[400269312,1767246639294,-500.0,0.00013698,2]
[400269313,1767246639303,-500.0,0.00013698,2]
[400269314,1767246639312,-500.0,0.00013698,2]
[400269315,1767246639322,-500.0,0.00013698,2]
[400269316,1767246639333,-501.34554409,0.00013698,2]
[400269317,1767246639343,-159.77203792,0.00013699,2]
[400269318,1767246639352,-457.22674749,0.00013699,2]
[400269319,1767246639361,-500.0,0.00013699,2]
[400269320,1767246639371,-500.0,0.00013699,2]
[400269321,1767246639380,-500.87963329,0.00013699,2]
[400269322,1767246639390,-501.33800671,0.00013699,2]
[400269323,1767246639399,-251.00272433,0.00013699,2]
[400269324,1767246639409,-500.0,0.00013699,2]
[400269325,1767246639418,-500.0,0.00013699,2]
[400269326,1767246639427,-500.0,0.00013699,2]
[400269327,1767246639436,-501.57657617,0.00013699,2]
[400269328,1767246639446,-500.0,0.00013699,2]
[400269329,1767246639458,-500.27689491,0.00013699,2]
[400269330,1767246639468,-500.0,0.00013699,2]
[400269331,1767246639477,-500.0,0.00013699,2]
[400269332,1767246639487,-500.0,0.00013699,2]
[400269333,1767246639497,-500.0,0.00013699,2]
[400269334,1767246639506,-226.86184291,0.00013699,2]
[400269335,1767246639516,-158.33594106,0.00013699,2]
[400269336,1767246639525,-500.0,0.00013699,2]
[400269337,1767246639534,-504.76855077,0.00013699,2]
[400269338,1767246639544,-500.0,0.00013699,2]
[400269339,1767246639554,-150.0,0.00013699,2]
[400269340,1767246639563,-500.0,0.00013699,2]
[400269341,1767246639573,-500.50269191,0.00013699,2]
[400269342,1767246639582,-500.0,0.00013699,2]
[400269343,1767246639592,-500.0,0.00013699,2]
[400269344,1767246639602,-500.0,0.00013699,2]
[400269345,1767246639611,-500.0,0.00013699,2]
[400269346,1767246639621,-500.0,0.00013699,2]
[400269347,1767246639630,-500.41254196,0.00013699,2]
[400269348,1767246639639,-500.96605192,0.00013699,2]
[400269349,1767246639648,-501.3582173,0.00013699,2]
[400269350,1767246639658,-500.0,0.00013699,2]
[400269351,1767246639667,-500.86510493,0.00013699,2]
[400269352,1767246639677,-316.4851046,0.00013699,2]
[400269353,1767246639687,-383.99222334,0.00013699,2]
[400269354,1767246639697,-500.0,0.00013699,2]
[400269355,1767246639706,-501.34213841,0.00013699,2]
[400269356,1767246639717,-373.28262423,0.00013699,2]
[400269357,1767246639727,-534.87876427,0.00013699,2]
[400269358,1767246639736,-500.17833478,0.00013699,2]
[400269359,1767246639745,-500.0867866,0.00013699,2]
[400269360,1767246639755,-500.73491636,0.00013699,2]
[400269361,1767246639764,-502.90555737,0.00013699,2]
[400269362,1767246639774,-500.40244192,0.00013699,2]
[400269363,1767246639783,-500.95516799,0.00013699,2]
[400269364,1767246639793,-500.0,0.00013699,2]
[400269365,1767246639803,-500.79513169,0.00013699,2]
[400269366,1767246639811,-500.49764939,0.00013699,2]
[400269367,1767246639820,-524.82836698,0.00013699,2]
[400269368,1767246639829,-1000.0,0.00013821,2]
[400269369,1767246639839,-527.43501459,0.00013821,2]
[400269370,1767246639847,-867.16101561,0.00013821,2]
[400269371,1767246639857,-1000.0,0.00013821,2]
[400269372,1767246639866,-987.40538387,0.00013821,2]
[400269373,1767246639875,-507.02514153,0.00013821,2]
[400269374,1767246639884,-1000.0,0.00013821,2]
[400269375,1767246639894,-1000.0,0.00013821,2]
[400269376,1767246639904,-310.3725378,0.00013821,2]
[400269377,1767246639913,-1000.0,0.00013821,2]
[400269378,1767246639922,-704.62025584,0.00013821,2]
[400269379,1767246639931,-1000.0,0.00013821,2]
[400269380,1767246639940,-565.97256515,0.00013831,2]
[400269381,1767246639949,-250.0,0.00014107,2]
[400269382,1767246639958,-823.0,0.0001418,2]
[400269383,1767246639968,-1001.84835347,0.00014247,2]
[400269384,1767246639978,-1100.08232842,0.00014247,2]
[400269385,1767246639987,-1000.0,0.00014247,2]
[400269386,1767246639996,-1005.26747214,0.00014247,2]
[400269387,1767246640006,-198.34157968,0.00014247,2]
[400269388,1767246640015,-1000.0,0.00014247,2]
[400269389,1767246640024,-502.44886287,0.00014247,2]
[400269390,1767246640033,-1000.0,0.00014247,2]
[400269391,1767246640043,-602.586313,0.00014247,2]
[400269393,1767246640052,-400.0,0.00014247,2]
[400269394,1767246640061,-1000.0,0.00014247,2]
[400269395,1767246640070,-1004.37283025,0.00014247,2]
[400269396,1767246640079,-1001.95418441,0.00014247,2]
[400269397,1767246640088,-1082.59288447,0.00014247,2]
[400269398,1767246640098,-160.44722878,0.00014247,2]
[400269400,1767246640107,-396.95,0.0001426,2]
[400269402,1767246640118,-1501.39987686,0.00014368,2]
[400269403,1767246640127,-387.84322362,0.00014368,2]
[400269404,1767246640136,-218.67284669,0.00014368,2]
[400269405,1767246640146,-470.75353878,0.00014368,2]
[400269406,1767246640155,-1629.14531311,0.00014368,2]
[400269408,1767246640164,-1500.0,0.00014368,2]
[400269409,1767246640174,-565.97256515,0.00014548,2]
[400269410,1767246640184,-285.93484686,0.00014726,2]
[400269411,1767246640193,-1042.69681858,0.00014795,2]
[400269412,1767246640202,-1000.0,0.00014795,2]
[400269413,1767246640211,-500.0,0.00014795,2]
[400269414,1767246640220,-501.18575005,0.00014795,2]
[400269415,1767246640230,-52998.81271165,0.00014882,2]
[400269416,1767246640239,-1506.13602634,0.00014916,2]
[400269417,1767246640248,-566.53853772,0.00015264,2]
[400269418,1767246640257,-529.27,0.00015347,2]
[400269419,1767246640266,-1152.0,0.00015587,2]
[400269420,1767246640275,-1000.0,0.000158,2]
[400269421,1767246640285,-661.59,0.00016434,2]
[400269422,1767246640294,-323.77916482,0.00016726,2]
[400269423,1767246640303,-519.38039977,0.00017096,2]
[400269424,1767246640312,-1613.0,0.00017134,2]
[400269426,1767246640322,-793.9,0.00017523,2]
[400269427,1767246640335,-1041.66666667,0.000183,2]
[400269429,1767246640344,-926.22,0.00018618,2]
[400269430,1767246640353,-361.62348279,0.00018726,2]
[400269431,1767246640363,-211.0,0.00018835,2]
[400269432,1767246640374,-302.90913937,0.000189,2]
[400269433,1767246640384,-302.90913937,0.000189,2]
[400269434,1767246640394,-302.90913937,0.00019089,2]
[400269435,1767246640405,-302.90913937,0.00019089,2]
[400269436,1767246640414,-796.7,0.00019178,2]
[400269437,1767246640424,-796.7,0.00019178,2]
[400269438,1767246640435,-796.7,0.00019178,2]
[400269439,1767246640444,-796.7,0.00019178,2]
[400269440,1767246640453,-796.7,0.00019178,2]
[400269441,1767246640463,-796.7,0.00019178,2]
[400269442,1767246640472,-796.7,0.00019178,2]
[400269443,1767246640481,-796.7,0.00019178,2]
[400269445,1767246640491,-796.7,0.00019178,2]
[400269446,1767246640500,-796.7,0.00019178,2]
[400269447,1767246640510,-796.7,0.00019178,2]
[400269448,1767246640519,-796.7,0.00019178,2]
[400269449,1767246640529,-796.7,0.00019178,2]
[400269450,1767246640539,-796.7,0.00019178,2]
[400269451,1767246640549,-796.7,0.00019178,2]
[400269452,1767246640558,-796.7,0.00019178,2]
[400269453,1767246640568,-796.7,0.00019178,2]
[400269454,1767246640578,-796.7,0.00019178,2]
[400269455,1767246640587,-796.7,0.00019178,2]
[400269456,1767246640597,-796.7,0.00019178,2]
[400269457,1767246640606,-796.7,0.00019178,2]
[400269458,1767246640616,-796.7,0.00019178,2]
[400269459,1767246640626,-796.7,0.00019178,2]
[400269460,1767246640636,-796.90033187,0.00019178,2]
[400269461,1767246640645,-302.99998492,0.00019278,2]
[400269464,1767246640655,-302.90913937,0.00019278,2]
[400269465,1767246640773,-302.90913937,0.00019467,2]
[400269466,1767246640782,-217.33,0.000195,2]
[400269467,1767246640792,-166.35,0.000195,2]
[400269468,1767246640802,-418.61459713,0.00019656,2]
[400269469,1767246640811,-1058.54,0.00019713,2]
[400269470,1767246640821,-399.46780075,0.00020726,2]
[400269471,1767246640830,-1190.86,0.00020808,2]
[400269472,1767246640839,-183.56718446,0.00021781,5]
[400269473,1767246640849,-1323.17,0.00021903,2]
[400269474,1767246640858,-285.61588297,0.00021917,2]
[400269475,1767246640868,-251.6135754,0.00021917,2]
[400269476,1767246640877,-396.59409814,0.00021917,2]
[400269477,1767246640886,-160.09792167,0.00021917,2]
[400269478,1767246640895,-242.63416874,0.00021917,2]
[400269479,1767246640905,-495.66542873,0.00021917,2]
[400269480,1767246640915,-273.58985288,0.00021917,2]
[400269481,1767246640924,-187.13995888,0.00021917,2]
[400269482,1767246640934,-248.32454399,0.00021917,2]
[400269483,1767246640943,-500.0,0.00021917,2]
[400269484,1767246640952,-260.47739591,0.00021917,2]
[400269485,1767246640961,-452.48670495,0.00021917,2]
[400269486,1767246640971,-459.76933981,0.00021917,2]
[400269487,1767246640981,-249.54861741,0.00021917,2]
[400269488,1767246640990,-475.26860085,0.00021917,2]
[400269489,1767246640999,-240.60935037,0.00021917,2]
[400269490,1767246641010,-486.85895682,0.00021917,2]
[400269491,1767246641019,-338.54047135,0.00021917,2]
[400269492,1767246641028,-297.21992504,0.00021917,2]
[400269493,1767246641037,-248.06564234,0.00021917,2]
[400269494,1767246641046,-463.59663672,0.00021917,2]
[400269495,1767246641055,-500.80685371,0.00021917,2]
[400269496,1767246641064,-492.64591151,0.00021917,2]
[400269497,1767246641074,-184.52928121,0.00021917,2]
[400269498,1767246641083,-371.28066561,0.00021917,2]
[400269499,1767246641093,-501.87004615,0.00021917,2]
[400269500,1767246641102,-500.0,0.00021917,2]
[400269501,1767246641111,-523.31407645,0.00021917,2]
[400269502,1767246641120,-179.05199102,0.00021917,2]
[400269503,1767246641129,-500.70495585,0.00021917,2]
[400269504,1767246641139,-504.04792974,0.00021917,2]
[400269505,1767246641148,-401.13092811,0.00021917,2]
[400269506,1767246641157,-518.4359387,0.00021917,2]
[400269507,1767246641167,-568.74908279,0.00021917,2]
[400269508,1767246641176,-493.13106988,0.00021917,2]
[400269509,1767246641186,-552.4053218,0.00021917,2]
[400269510,1767246641195,-275.89894745,0.00021917,2]
[400269511,1767246641205,-518.30497019,0.00021917,2]
[400269512,1767246641214,-502.87281285,0.00021917,2]
[400269513,1767246641223,-529.9751576,0.00021917,2]
[400269514,1767246641233,-408.88764629,0.00021917,2]
[400269515,1767246641242,-516.60053406,0.00021917,2]
[400269516,1767246641251,-280.51078122,0.00021917,2]
[400269517,1767246641261,-497.44272827,0.00021917,2]
[400269518,1767246641270,-272.63568272,0.00021917,2]
[400269519,1767246641279,-458.34960511,0.00021917,2]
[400269520,1767246641289,-554.27993055,0.00021917,2]
[400269521,1767246641298,-500.0,0.00021917,2]
[400269522,1767246641307,-153.64364551,0.00021917,2]
[400269523,1767246641317,-500.0,0.00021917,2]
[400269524,1767246641330,-500.0,0.00021917,2]
[400269525,1767246641339,-350.29751082,0.00021917,2]
[400269526,1767246641349,-318.08002056,0.00021917,2]
[400269527,1767246641358,-240.44,0.00022,2]
[400269528,1767246641367,-6629.95,0.00022,2]
[400269529,1767246641376,-180.94572281,0.00022191,2]
[400269530,1767246641386,-500.0,0.00022191,2]
[400269531,1767246641395,-510.76405054,0.00022191,2]
[400269532,1767246641405,-500.0,0.00022465,2]
[400269533,1767246641414,-437.31211872,0.00022726,2]
[400269534,1767246641424,-502.95914961,0.00022739,2]
[400269535,1767246641433,-154.69,0.000231,7]
[400269536,1767246641443,-519.38039977,0.00023427,2]
[400269537,1767246641452,-152.81821811,0.000239,2]
[400269538,1767246641461,-152.81821803,0.000239,2]
[400269539,1767246641470,-152.81821803,0.000239,2]
[400269540,1767246641480,-152.81821803,0.000239,2]
[400269541,1767246641489,-152.81821803,0.000239,2]
[400269542,1767246641498,-170.0,0.00023973,11]
[400269543,1767246641508,-152.81821803,0.00026474,2]
[400269544,1767246641517,-188.0,0.00026712,21]
[400269545,1767246641526,-150.0,0.00027397,5]
[400269546,1767246641535,-1100.0,0.0002765,7]
[400269547,1767246641545,-1100.0,0.00027732,7]
[400269548,1767246641554,-1100.0,0.00027751,7]
[400269549,1767246641564,-6629.95,0.000278,2]
[400269550,1767246641574,-1100.0,0.00027832,7]
[400269551,1767246641583,-250.0,0.00027945,5]
[400269552,1767246641592,-2000.0,0.00028165,7]
[400269553,1767246641602,-2000.0,0.00028174,7]
[400269554,1767246641612,-2000.0,0.00028183,7]
[400269555,1767246641621,-1041.66666667,0.00028183,7]
[400269556,1767246641631,-2000.0,0.00028192,7]
[400269557,1767246641640,-2000.0,0.00028201,7]
[400269558,1767246641649,-2000.0,0.00028209,7]
[400269559,1767246641659,-2000.0,0.00028218,7]
[400269560,1767246641668,-2000.0,0.00028227,7]
[400269561,1767246641678,-2000.0,0.00028236,7]
[400269562,1767246641687,-1100.0,0.00028238,7]
[400269563,1767246641697,-2000.0,0.00028245,7]
[400269564,1767246641706,-2000.0,0.00028253,7]
[400269565,1767246641716,-2000.0,0.00028262,7]
[400269566,1767246641725,-2000.0,0.00028271,7]
[400269567,1767246641735,-2000.0,0.0002828,7]
[400269568,1767246641744,-2000.0,0.00028289,7]
[400269569,1767246641754,-1100.0,0.00028293,7]
[400269570,1767246641763,-2000.0,0.00028297,7]
[400269571,1767246641773,-645.96236018,0.000283,7]
[400269572,1767246641783,-250.0,0.00028363,2]
[400269573,1767246641792,-250.0,0.00028363,2]
[400269574,1767246641801,-250.0,0.00028363,2]
[400269575,1767246641810,-250.0,0.00028363,2]
[400269576,1767246641821,-250.0,0.00028363,2]
[400269577,1767246641831,-250.0,0.00028363,2]
[400269578,1767246641840,-250.0,0.00028363,2]
[400269579,1767246641850,-4777.43011459,0.00028363,2]
[400269580,1767246641859,-500.0,0.00028396,7]
[400269581,1767246641869,-350.0,0.00028493,5]
[400269582,1767246641878,-240.44,0.000285,2]
[400269583,1767246641887,-1100.0,0.00028594,7]
[400269584,1767246641896,-152.65,0.000288,2]
[400269585,1767246641905,-1100.0,0.00028891,7]
[400269586,1767246641914,-152.65,0.000289,2]
[400269587,1767246641924,-1100.0,0.00028933,7]
[400269588,1767246641933,-500.0,0.00029034,7]
[400269589,1767246641942,-450.0,0.00029041,5]
[400269590,1767246641952,-1100.0,0.00029097,7]
[400269591,1767246641962,-152.65,0.000291,2]
[400269592,1767246641971,-1100.0,0.00029141,7]
[400269593,1767246641980,-152.65,0.000292,2]
[400269594,1767246641989,-1100.0,0.00029223,7]
[400269595,1767246641998,-500.0,0.00029267,7]
[400269596,1767246642008,-152.65,0.000293,2]
[400269597,1767246642017,-1100.0,0.00029446,7]
[400269598,1767246642026,-175.0,0.00029452,34]
[400269599,1767246642036,-152.65,0.000295,2]
[400269600,1767246642045,-365.55215583,0.00029589,5]
[400269601,1767246642054,-152.65,0.000296,2]
[400269602,1767246642064,-500.0,0.00029601,7]
[400269603,1767246642073,-152.81821803,0.00029616,2]
[400269604,1767246642083,-519.38039977,0.00029759,2]
[400269605,1767246642092,-6629.95,0.000298,2]
[400269606,1767246642103,-152.65,0.000298,2]
[400269607,1767246642112,-188.11386458,0.00029812,4]
[400269608,1767246642121,-217.33,0.000299,14]
[400269609,1767246642130,-152.65,0.000299,2]
[400269610,1767246642139,-2000.0,0.00029914,7]
[400269611,1767246642149,-1100.0,0.00029958,7]
[400269612,1767246642158,-1100.0,0.00030044,7]
[400269613,1767246642167,-152.65,0.000301,2]
[400269614,1767246642177,-1100.0,0.00030115,7]
[400269615,1767246642187,-1100.0,0.00030138,7]
[400269616,1767246642196,-1100.0,0.00030181,7]
[400269617,1767246642205,-152.65,0.000302,2]
[400269618,1767246642215,-152.65,0.000303,2]
[400269619,1767246642224,-500.0,0.00030321,7]
[400269620,1767246642234,-378.13800268,0.00030348,2]
[400269621,1767246642243,-1100.0,0.00030428,7]
[400269622,1767246642252,-150.0,0.00030432,30]
[400269623,1767246642262,-152.65,0.000305,2]
[400269624,1767246642271,-152.65,0.000306,2]
[400269625,1767246642280,-184.00470644,0.00030612,26]
[400269626,1767246642290,-184.804,0.00030612,26]
[400269627,1767246642299,-151.0,0.00030772,4]
[400269628,1767246642309,-152.65,0.000308,2]
[400269629,1767246642319,-500.0,0.00030836,7]
[400269630,1767246642332,-152.65,0.000309,2]
[400269631,1767246642342,-574.69,0.00030958,30]
[400269632,1767246642351,-274.80124425,0.00030966,7]
[400269633,1767246642361,-182.69083928,0.00031,120]
[400269634,1767246642370,-1063.11433124,0.00031,120]
[400269635,1767246642380,-194.43091559,0.00031,120]
[400269636,1767246642389,-200.80728226,0.00031,120]
[400269637,1767246642400,-161.57990308,0.00031,120]
[400269638,1767246642409,-181.86492436,0.00031,120]
[400269639,1767246642418,-163.54107835,0.00031,120]
[400269640,1767246642428,-208.62713506,0.00031,120]
[400269641,1767246642437,-184.3824898,0.00031,120]
[400269642,1767246642446,-162.59864532,0.00031,120]
[400269643,1767246642455,-183.86417209,0.00031,120]
[400269644,1767246642464,-1022.67877753,0.00031,7]
[400269645,1767246642474,-161.34008523,0.00031,120]
[400269646,1767246642483,-175.34818034,0.00031,120]
[400269647,1767246642492,-152.65,0.000311,2]
[400269648,1767246642501,-2157.0,0.00031141,2]
[400269649,1767246642511,-1364.0,0.00031141,2]
[400269650,1767246642519,-628.0,0.00031141,2]
[400269651,1767246642529,-1100.0,0.0003119,7]
[400269652,1767246642538,-152.65,0.000312,2]
[400269653,1767246642547,-1100.0,0.00031398,7]
[400269654,1767246642556,-152.65,0.000314,2]
[400269655,1767246642566,-6629.95,0.000315,2]
[400269656,1767246642576,-152.65,0.000315,2]
[400269657,1767246642585,-574.69,0.00031506,31]
[400269658,1767246642595,-263.8553107,0.00031506,120]
[400269659,1767246642604,-500.0,0.00031623,7]
[400269660,1767246642614,-1100.0,0.00031745,7]
[400269661,1767246642623,-1100.0,0.00031748,7]
[400269662,1767246642632,-1100.0,0.00031783,7]
[400269663,1767246642642,-1100.0,0.00031849,7]
[400269664,1767246642651,-182.69083928,0.000319,120]
[400269665,1767246642660,-1063.11433124,0.000319,120]
[400269666,1767246642669,-194.43091559,0.000319,120]
[400269667,1767246642679,-200.80728226,0.000319,120]
[400269668,1767246642688,-161.57990308,0.000319,120]
[400269669,1767246642697,-181.86492436,0.000319,120]
[400269670,1767246642707,-163.54107835,0.000319,120]
[400269671,1767246642716,-208.62713506,0.000319,120]
[400269672,1767246642726,-162.59864532,0.000319,120]
[400269673,1767246642735,-183.86417209,0.000319,120]
[400269674,1767246642744,-2000.0,0.00031932,7]
[400269675,1767246642753,-26086.74604382,0.00032,120]
[400269676,1767246642763,-26690.05505472,0.00032,120]
[400269677,1767246642772,-1041.66666667,0.00032,120]
[400269678,1767246642781,-1018.0,0.00032,7]
[400269679,1767246642790,-500.0,0.00032031,7]
[400269680,1767246642800,-1100.0,0.00032039,7]
[400269681,1767246642809,-574.69,0.00032054,32]
[400269682,1767246642818,-1100.0,0.00032199,7]
[400269683,1767246642827,-1100.0,0.00032229,7]
[400269684,1767246642837,-1636.99644226,0.00032249,7]
[400269685,1767246642845,-151.0,0.00032407,5]
[400269686,1767246642854,-574.69,0.00032602,33]
[400269687,1767246642863,-170.0,0.0003274,55]
[400269688,1767246642873,-5000.0,0.0003275,2]
[400269689,1767246642882,-152.81821803,0.00032758,2]
[400269690,1767246642891,-1608.26373009,0.00032776,2]
[400269691,1767246642900,-200.0,0.00032876,120]
[400269692,1767246642909,-510.29,0.00032877,10]
[400269693,1767246642918,-425.24,0.00032877,10]
[400269694,1767246642927,-354.37,0.00032877,10]
[400269695,1767246642937,-500.0,0.00032877,5]
[400269696,1767246642946,-150.0,0.00032877,5]
[400269698,1767246642955,-344.43947501,0.00032882,120]
[400269700,1767246642964,-1063.11433124,0.000329,120]
[400269702,1767246642973,-161.57990308,0.000329,120]
[400269703,1767246642982,-181.86492436,0.000329,120]
[400269704,1767246642990,-163.54107835,0.000329,120]
[400269705,1767246643000,-208.62713506,0.000329,120]
[400269706,1767246643009,-162.59864532,0.000329,120]
[400269707,1767246643018,-183.86417209,0.000329,120]
[400269708,1767246643027,-1041.66666667,0.00033,120]
[400269709,1767246643037,-1018.0,0.00033,7]
[400269710,1767246643046,-574.69,0.0003315,34]
[400269711,1767246643054,-418.0,0.00033167,30]
[400269712,1767246643063,-889.5,0.00033167,30]
[400269713,1767246643073,-13270.0,0.00033167,30]
[400269714,1767246643082,-150.0,0.00033198,30]
[400269715,1767246643091,-4269.2919,0.0003322,30]
[400269716,1767246643100,-1608.26373007,0.00033271,2]
[400269717,1767246643109,-1010.28727456,0.00033425,5]
[400269718,1767246643118,-6464.62555377,0.00033529,41]
[400269719,1767246643127,-574.69,0.00033698,35]
[400269720,1767246643136,-250.0,0.00033699,5]
[400269721,1767246643145,-24779.59944894,0.00033699,10]
[400269722,1767246643154,-1608.26373007,0.00033766,2]
[400269723,1767246643257,-295.832,0.000338,30]
[400269724,1767246643266,-295.83,0.000338,30]
[400269725,1767246643276,-1063.11433124,0.000339,120]
[400269726,1767246643285,-181.86492436,0.000339,120]
[400269727,1767246643294,-208.62713506,0.000339,120]
[400269728,1767246643303,-2000.0,0.00033949,7]
[400269729,1767246643312,-1041.66666667,0.00034,10]
[400269730,1767246643322,-1018.0,0.00034,7]
[400269731,1767246643335,-151.0,0.00034042,6]
[400269732,1767246643344,-2157.0,0.00034141,2]
[400269733,1767246643353,-1364.0,0.00034141,2]
[400269734,1767246643362,-628.0,0.00034141,2]
[400269735,1767246643373,-217.33,0.000342,30]
[400269736,1767246643382,-574.69,0.00034246,36]
[400269737,1767246643391,-1608.26373007,0.00034261,2]
[400269738,1767246643401,-350.0,0.00034521,5]
[400269739,1767246643410,-497.02,0.0003459,60]
[400269740,1767246643420,-6288.19,0.000346,14]
[400269741,1767246643429,-497.02,0.0003469,60]
[400269742,1767246643439,-1608.26373007,0.00034756,2]
[400269743,1767246643448,-497.02,0.0003479,60]
[400269744,1767246643457,-574.69,0.00034794,37]
[400269745,1767246643466,-497.02,0.0003489,60]
[400269746,1767246643475,-1063.11433124,0.000349,120]
[400269747,1767246643484,-181.86492436,0.000349,120]
[400269748,1767246643493,-208.62713506,0.000349,120]
[400269749,1767246643502,-497.02,0.0003499,60]
[400269750,1767246643511,-200.61641,0.00035,120]
[400269751,1767246643521,-1018.0,0.00035,7]
[400269752,1767246643530,-497.02,0.0003509,60]
[400269753,1767246643539,-497.02,0.0003519,60]
[400269754,1767246643549,-1608.26373007,0.00035251,2]
[400269755,1767246643559,-497.02,0.0003529,60]
[400269756,1767246643568,-2000.0,0.00035333,15]
[400269757,1767246643578,-574.69,0.00035342,38]
[400269758,1767246643587,-497.02,0.0003539,60]
[400269759,1767246643596,-497.02,0.0003549,60]
[400269760,1767246643606,-6629.95,0.000355,14]
[400269761,1767246643615,-497.02,0.0003559,60]
[400269762,1767246643624,-151.0,0.00035676,30]
[400269763,1767246643633,-497.02,0.0003569,60]
[400269764,1767246643642,-1608.26373007,0.00035746,2]
[400269765,1767246643652,-497.02,0.0003579,60]
[400269766,1767246643661,-497.02,0.0003589,60]
[400269767,1767246643670,-574.69,0.0003589,39]
[400269768,1767246643679,-1063.11433124,0.000359,120]
[400269769,1767246643688,-152.81821803,0.000359,2]
[400269770,1767246643697,-170.12,0.00035965,30]
[400269771,1767246643707,-2000.0,0.00035966,7]
[400269772,1767246643716,-497.02,0.0003599,60]
[400269773,1767246643725,-2501.01432362,0.00035992,10]
[400269774,1767246643734,-213439.29868761,0.00035999,7]
[400269775,1767246643744,-163.0,0.00036,30]
[400269776,1767246643753,-50000.0,0.00036,30]
[400269777,1767246643762,-1657.0,0.00036,120]
[400269778,1767246643772,-1041.66666667,0.00036,30]
[400269779,1767246643781,-497.02,0.0003609,60]
[400269780,1767246643791,-519.38039977,0.0003609,2]
[400269782,1767246643800,-497.02,0.0003619,60]
[400269783,1767246643810,-265284.29415864,0.0003619,2]
[400269784,1767246643819,-151.0,0.0003619,31]
[400269785,1767246643828,-151.0,0.0003619,31]
[400269786,1767246643837,-151.0,0.0003619,31]
[400269787,1767246643846,-193.779876,0.0003619,31]
[400269788,1767246643855,-193.779876,0.0003619,31]
[400269789,1767246643864,-193.779876,0.0003619,31]
[400269790,1767246643873,-193.779876,0.0003619,31]
[400269791,1767246643883,-151.0,0.0003619,31]
[400269792,1767246643892,-151.0,0.0003619,31]
[400269793,1767246643901,-151.0,0.0003619,31]
[400269795,1767246643911,-151.0,0.0003619,31]
[400269796,1767246643920,-151.0,0.0003619,31]
[400269797,1767246643929,-777.206571,0.0003619,31]
[400269798,1767246643938,-777.206571,0.0003619,31]
[400269799,1767246643947,-777.206571,0.0003619,31]
[400269800,1767246643956,-777.206571,0.0003619,31]
[400269801,1767246643965,-151.0,0.0003619,31]